bitfinex-derivatives/quotes_BTCF0:USTF0_20241110
["timestamp","ask_amount","ask_price","bid_price","bid_amount"]
[1731262076239,0.14200038,80877.0,80872.0,0.38554493]
[1731262076437,0.03026772,80876.0,80875.0,0.3608]
[1731262076742,0.061747,80874.0,80872.0,0.02474493]
[1731262077045,0.061751,80868.0,80867.0,0.00012077]
[1731262077238,0.23402251,80868.0,80867.0,0.00012077]
[1731262077544,0.061751,80868.0,80867.0,0.00012077]
[1731262077750,0.061751,80868.0,80851.0,0.3608]
[1731262077751,0.061759,80858.0,80851.0,0.3608]
[1731262077932,0.061762,80855.0,80851.0,0.3608]
[1731262078131,0.14200038,80863.0,80851.0,0.3608]
[1731262078346,0.061761,80856.0,80854.0,0.02474493]
[1731262078742,0.061766,80849.0,80842.0,0.3608]
[1731262078947,0.061768,80847.0,80842.0,0.3608]
[1731262079148,0.061773,80840.0,80839.0,0.00010069]
[1731262079334,0.1376,80851.0,80839.0,0.00010069]
[1731262079535,0.061773,80841.0,80839.0,0.00010069]
[1731262079841,0.1376,80851.0,80839.0,0.00010069]
[1731262080350,0.03027931,80850.0,80839.0,0.00010069]
[1731262080644,0.061772,80841.0,80839.0,0.00010069]
[1731262081941,0.03028426,80840.0,80839.0,0.00010069]
[1731262082246,0.40140426,80840.0,80839.0,0.00010069]
[1731262082951,0.061777,80834.0,80833.0,0.02541]
[1731262083245,0.73246164,80834.0,80833.0,0.02541]
[1731262083444,0.74278164,80834.0,80833.0,0.02541]
[1731262084341,0.37166164,80834.0,80833.0,0.02541]
[1731262085045,1.07329738,80834.0,80833.0,0.02541]
[1731262085249,1.10358362,80834.0,80833.0,0.02541]
[1731262085643,0.70217738,80834.0,80833.0,0.02541]
[1731262086246,1.07329738,80834.0,80833.0,0.02541]
[1731262087450,0.061791,80817.0,80816.0,0.3608]
[1731262087642,0.64225682,80834.0,80816.0,0.3608]
[1731262087843,0.061787,80821.0,80816.0,0.3608]
[1731262088038,0.061787,80822.0,80816.0,0.3608]
[1731262088438,0.13764,80826.0,80818.0,0.061789]
[1731262088943,0.061784,80826.0,80818.0,0.061789]
[1731262089147,0.00185644,80834.0,80826.0,0.061783]
[1731262089448,0.13764,80833.0,80827.0,0.061783]
[1731262089763,0.13764,80833.0,80824.0,0.3608]
[1731262090550,0.00185644,80834.0,80831.0,0.061779]
[1731262090849,0.00185644,80834.0,80833.0,0.3608]
[1731262091347,0.061759,80859.0,80833.0,0.91769351]
[1731262091552,0.061754,80865.0,80854.0,0.3608]
[1731262091847,0.72168676,80855.0,80831.0,0.3608]
[1731262092041,0.72168676,80855.0,80849.0,0.3608]
[1731262092042,8.676e-05,80855.0,80849.0,0.3608]
[1731262092248,0.06184776,80855.0,80849.0,0.3608]
[1731262092839,0.06184776,80855.0,80849.0,0.15824873]
[1731262092840,0.06822194,80854.0,80849.0,0.15824873]
[1731262093040,0.06822194,80854.0,80852.0,0.061763]
[1731262094351,0.06822194,80854.0,80849.0,0.15824873]
[1731262094547,0.06822194,80854.0,80848.0,0.3608]
[1731262094745,0.06822194,80854.0,80840.0,0.2788]
[1731262094940,0.06822194,80854.0,80841.0,0.061772]
[1731262095146,0.061765,80851.0,80841.0,0.061772]
[1731262095356,0.06822194,80850.0,80841.0,0.061772]
[1731262095554,0.06822194,80850.0,80841.0,0.044772]
[1731262095744,0.06822194,80849.0,80841.0,0.044772]
[1731262095949,0.06822194,80849.0,80840.0,0.33807081]
[1731262095950,0.06822194,80849.0,80842.0,0.061771]
[1731262096455,0.06822194,80849.0,80843.0,0.02474571]
[1731262096654,0.06822194,80849.0,80844.0,0.3608]
[1731262096852,0.06822194,80849.0,80848.0,0.061767]
[1731262097349,0.06822094,80849.0,80846.0,0.061768]
[1731262097545,0.06822094,80848.0,80846.0,0.061768]
[1731262097748,0.06822094,80847.0,80846.0,0.061768]
[1731262098251,0.03027424,80847.0,80846.0,0.061768]
[1731262098446,0.06822094,80853.0,80846.0,0.061768]
[1731262098643,0.061765,80851.0,80844.0,0.3608]
[1731262098848,0.06822094,80850.0,80844.0,0.3608]
[1731262099053,0.06822094,80850.0,80845.0,0.3608]
[1731262099249,0.06822094,80849.0,80845.0,0.3608]
[1731262099449,8.676e-05,80855.0,80847.0,0.061767]
[1731262099450,0.06822094,80848.0,80847.0,0.061767]
[1731262099749,0.06822094,80848.0,80845.0,0.3608]
[1731262099950,0.06822094,80847.0,80846.0,0.061768]
[1731262100751,8.676e-05,80855.0,80846.0,0.37108]
[1731262100955,0.03027237,80854.0,80853.0,0.061762]
[1731262101549,0.03027228,80854.0,80853.0,0.061762]
[1731262102154,0.03027228,80854.0,80852.0,0.3608]
[1731262102351,8.676e-05,80855.0,80852.0,0.3608]
[1731262102352,0.03027228,80853.0,80852.0,0.3608]
[1731262102653,0.061766,80850.0,80843.0,0.38554571]
[1731262102960,0.03027228,80849.0,80843.0,0.38554571]
[1731262103948,0.39107228,80848.0,80832.0,0.02475247]
[1731262104156,0.06178,80831.0,80829.0,0.00185551]
[1731262104354,0.11257115,80847.0,80829.0,0.00185551]
[1731262104355,0.03027228,80830.0,80829.0,0.00185551]
[1731262105153,0.06823027,80833.0,80829.0,0.00185551]
[1731262105355,0.03027228,80832.0,80829.0,0.06363651]
[1731262105561,0.03027228,80831.0,80830.0,0.14200038]
[1731262105858,0.061767,80848.0,80837.0,0.061775]
[1731262106061,0.06822926,80847.0,80837.0,0.061775]
[1731262106356,0.06822926,80846.0,80830.0,0.50280038]
[1731262106555,0.03027793,80845.0,80840.0,0.061772]
[1731262107057,0.03027793,80845.0,80837.0,0.3608]
[1731262107262,0.03027793,80845.0,80830.0,0.42190477]
[1731262107465,0.03027793,80845.0,80837.0,0.3608]
[1731262107663,0.03027793,80845.0,80841.0,0.061772]
[1731262107864,0.03027793,80845.0,80844.0,0.3608]
[1731262108065,0.12999486,80850.0,80844.0,0.3608]
[1731262108364,0.06822986,80849.0,80841.0,0.061772]
[1731262108561,0.06822986,80848.0,80841.0,0.061772]
[1731262108761,0.06822986,80847.0,80843.0,0.06177]
[1731262108953,0.06822986,80846.0,80843.0,0.06177]
[1731262109159,0.06822986,80845.0,80843.0,0.06177]
[1731262109358,0.06822986,80844.0,80843.0,0.06177]
[1731262110069,0.06822986,80844.0,80838.0,0.2763]
[1731262110267,0.06822986,80843.0,80838.0,0.2763]
[1731262110564,0.061772,80841.0,80838.0,0.2763]
[1731262110764,0.06822986,80840.0,80838.0,0.338074]
[1731262111062,0.10611129,80847.0,80838.0,0.338074]
[1731262111063,0.06822986,80839.0,80838.0,0.338074]
[1731262111267,0.06822986,80839.0,80838.0,0.28739634]
[1731262112955,0.06822986,80839.0,80837.0,0.02474187]
[1731262113154,0.3608,80846.0,80837.0,0.02474187]
[1731262113155,0.06822986,80838.0,80837.0,0.02474187]
[1731262114070,0.00185551,80870.0,80868.0,0.061751]
[1731262114363,0.3608,80890.0,80869.0,0.6431]
[1731262114566,0.09406166,80893.0,80881.0,0.3608]
[1731262114764,0.09406166,80893.0,80882.0,0.2887]
[1731262115063,0.3608,80898.0,80889.0,0.3608]
[1731262115266,0.11,80900.0,80890.0,0.09406166]
[1731262115267,0.00013945,80897.0,80890.0,0.09406166]
[1731262115568,0.3559,80910.0,80896.0,0.3608]
[1731262115569,0.3558,80910.0,80896.0,0.3608]
[1731262115862,0.061737,80888.0,80886.0,0.00015334]
[1731262116265,0.3608,80912.0,80887.0,0.65066113]
[1731262116460,0.3608,80921.0,80900.0,0.3608]
[1731262116461,0.3608,80913.0,80900.0,0.3608]
[1731262116665,0.3608,80904.0,80890.0,0.061734]
[1731262116966,0.3608,80904.0,80888.0,0.3232317]
[1731262117271,0.3608,80913.0,80891.0,0.5465117]
[1731262117567,0.3608,80913.0,80905.0,0.3608]
[1731262117768,0.3608,80913.0,80901.0,0.14087339]
[1731262117969,0.3608,80914.0,80901.0,0.14087339]
[1731262118161,0.3608,80924.0,80910.0,0.14087339]
[1731262118557,0.3608,80924.0,80910.0,0.18526422]
[1731262118763,0.3608,80916.0,80907.0,0.199201]
[1731262118964,0.03791744,80915.0,80910.0,0.3608]
[1731262119166,0.3608,80923.0,80920.0,0.061711]
[1731262119361,0.3608,80923.0,80922.0,0.14087339]
[1731262119560,0.39871636,80923.0,80921.0,0.24770221]
[1731262119764,0.3608,80923.0,80922.0,0.3268656]
[1731262119969,0.3608,80923.0,80922.0,0.51159339]
[1731262120274,0.28171451,80931.0,80930.0,0.061704]
[1731262120480,0.3608,80942.0,80930.0,0.44087339]
[1731262120775,0.3608,80942.0,80930.0,0.18546247]
[1731262120969,0.03791389,80941.0,80931.0,0.13748]
[1731262121273,0.3608,80942.0,80939.0,0.14087339]
[1731262121569,0.061682,80959.0,80941.0,0.3608]
[1731262121867,0.3608,80964.0,80942.0,0.32241596]
[1731262121868,0.3608,80954.0,80942.0,0.32241596]
[1731262122062,0.03024329,80953.0,80942.0,0.32241596]
[1731262122264,0.03024329,80952.0,80948.0,0.3608]
[1731262122462,0.3608,80970.0,80948.0,0.3608]
[1731262122463,0.061676,80967.0,80951.0,0.14087339]
[1731262122769,0.14087339,80959.0,80958.0,0.3608]
[1731262122966,0.061683,80958.0,80952.0,0.18465767]
[1731262123165,0.061683,80958.0,80942.0,0.05900519]
[1731262123166,0.06814225,80957.0,80951.0,0.02472187]
[1731262123373,0.06814225,80956.0,80955.0,0.3608]
[1731262123566,0.06814225,80956.0,80955.0,0.63911339]
[1731262123774,0.06814225,80956.0,80955.0,0.51143339]
[1731262123971,0.06814225,80956.0,80955.0,0.3223608]
[1731262124175,0.06814225,80956.0,80951.0,0.02472187]
[1731262124377,0.04428983,80969.0,80952.0,0.1374]
[1731262124378,0.06814225,80955.0,80952.0,0.1374]
[1731262124576,0.061683,80959.0,80954.0,0.3608]
[1731262124777,0.06813813,80958.0,80954.0,0.3608]
[1731262124971,0.06813813,80957.0,80954.0,0.3608]
[1731262125172,0.06813813,80956.0,80954.0,0.3608]
[1731262125378,0.06813813,80955.0,80954.0,0.3608]
[1731262125677,0.06813813,80955.0,80954.0,0.54648019]
[1731262125978,0.06813813,80955.0,80954.0,0.91704019]
[1731262126167,0.03023749,80955.0,80954.0,0.91704019]
[1731262126573,0.03023749,80955.0,80954.0,0.4982]
[1731262126773,0.03023749,80955.0,80954.0,0.18550795]
[1731262126774,0.09192249,80955.0,80954.0,0.18550795]
[1731262127077,0.09192249,80955.0,80938.0,0.3608]
[1731262127078,0.061697,80939.0,80938.0,0.3608]
[1731262127776,0.12983623,80939.0,80938.0,0.3608]
[1731262127970,0.12983623,80939.0,80929.0,0.06146374]
[1731262128168,0.12983723,80938.0,80926.0,0.1374]
[1731262128370,0.03023749,80937.0,80926.0,0.05919754]
[1731262128567,0.061701,80934.0,80933.0,0.3608]
[1731262128768,0.061701,80934.0,80923.0,0.36092617]
[1731262128769,0.061709,80924.0,80923.0,0.00012617]
[1731262128969,0.061709,80924.0,80923.0,1.7e-07]
[1731262128970,0.49067118,80924.0,80923.0,1.7e-07]
[1731262129265,0.12987118,80924.0,80923.0,1.7e-07]
[1731262129873,0.12999718,80924.0,80923.0,1.7e-07]
[1731262130274,0.09208056,80924.0,80923.0,1.7e-07]
[1731262130469,0.12999818,80924.0,80923.0,1.7e-07]
[1731262131079,0.12999818,80924.0,80919.0,0.00154595]
[1731262131080,0.06828918,80924.0,80919.0,0.00154595]
[1731262131277,0.061712,80920.0,80919.0,0.00154595]
[1731262131581,0.51159339,80923.0,80896.0,0.05925246]
[1731262131767,0.51159339,80923.0,80886.0,0.061737]
[1731262131768,0.3608,80901.0,80884.0,0.3608]
[1731262131968,0.41224,80922.0,80899.0,0.14087339]
[1731262131969,0.3608,80920.0,80899.0,0.14087339]
[1731262132279,0.061714,80918.0,80909.0,8.703e-05]
[1731262132466,0.061717,80913.0,80909.0,8.703e-05]
[1731262132671,0.061718,80912.0,80909.0,8.703e-05]
[1731262132967,0.3608,80920.0,80909.0,8.703e-05]
[1731262133370,0.061714,80918.0,80909.0,8.703e-05]
[1731262133970,0.3608,80920.0,80909.0,8.703e-05]
[1731262134171,0.000126,80924.0,80914.0,0.3608]
[1731262134802,0.000126,80924.0,80915.0,0.18569105]
[1731262135170,0.000126,80924.0,80917.0,0.3608]
[1731262135373,0.000126,80924.0,80913.0,0.06086119]
[1731262135374,0.061713,80918.0,80913.0,0.3608]
[1731262135571,0.14087339,80917.0,80909.0,8.703e-05]
[1731262135780,0.061718,80912.0,80909.0,8.703e-05]
[1731262135966,0.061714,80918.0,80909.0,8.703e-05]
[1731262136171,0.06171,80923.0,80911.0,0.3608]
[1731262136373,0.000126,80924.0,80911.0,0.3608]
[1731262136578,0.000126,80924.0,80909.0,8.703e-05]
[1731262136579,0.000126,80924.0,80909.0,0.02480832]
[1731262137071,0.000126,80924.0,80911.0,0.3608]
[1731262137379,0.000126,80924.0,80916.0,0.061714]
[1731262137578,0.000126,80924.0,80918.0,0.3608]
[1731262137877,0.000126,80924.0,80919.0,0.18423898]
[1731262139169,0.000126,80924.0,80911.0,0.50332]
[1731262139170,0.000126,80924.0,80920.0,0.3608]
[1731262139374,0.000126,80924.0,80919.0,0.3608]
[1731262139779,0.06171,80923.0,80911.0,0.3608]
[1731262139991,0.000126,80924.0,80922.0,0.06171]
[1731262140474,0.000126,80924.0,80923.0,0.18414485]
[1731262140873,0.000126,80924.0,80922.0,0.06171]
[1731262141076,0.000126,80924.0,80919.0,0.56297368]
[1731262141282,0.000126,80924.0,80919.0,0.56133368]
[1731262141580,0.000126,80924.0,80919.0,0.55653368]
[1731262141779,0.000126,80924.0,80911.0,0.3608]
[1731262142274,0.061714,80917.0,80911.0,0.42040954]
[1731262142481,0.3608,80920.0,80905.0,0.3608]
[1731262142676,0.3608,80920.0,80909.0,0.08504893]
[1731262142878,0.000126,80924.0,80916.0,0.3608]
[1731262143271,0.000126,80924.0,80920.0,0.061712]
[1731262143474,0.000126,80924.0,80917.0,0.18520796]
[1731262143674,0.000126,80924.0,80923.0,0.3608]
[1731262143877,0.000126,80924.0,80922.0,0.42251]
[1731262144075,0.000126,80924.0,80923.0,0.18616924]
[1731262144280,0.000126,80924.0,80922.0,0.20255]
[1731262145081,0.000126,80924.0,80922.0,0.26381836]
[1731262145277,0.000126,80924.0,80922.0,0.06126836]
[1731262145477,0.000126,80924.0,80921.0,0.3608]
[1731262145679,0.000126,80924.0,80921.0,0.422511]
[1731262145886,0.000126,80924.0,80922.0,0.06171]
[1731262146390,0.3608,80946.0,80923.0,0.69612819]
[1731262146686,0.10092417,80945.0,80934.0,0.061701]
[1731262146883,0.3608,80951.0,80934.0,0.061701]
[1731262146884,0.03024388,80944.0,80934.0,0.061701]
[1731262147185,0.03024388,80943.0,80941.0,0.3608]
[1731262147373,0.03024388,80942.0,80941.0,0.3608]
[1731262147775,0.00552155,80952.0,80950.0,0.061689]
[1731262147976,0.3608,80959.0,80951.0,0.3608]
[1731262148183,0.061679,80963.0,80951.0,0.3608]
[1731262149290,0.09383617,80966.0,80951.0,0.3608]
[1731262149482,0.06168,80962.0,80952.0,0.18543946]
[1731262149804,0.00119549,80957.0,80953.0,0.3608]
[1731262150087,0.00119549,80957.0,80955.0,0.061684]
[1731262150487,0.00119549,80957.0,80956.0,0.18646713]
[1731262150992,0.00119549,80957.0,80953.0,0.3608]
[1731262151181,0.00119549,80957.0,80956.0,0.24718357]
[1731262151378,0.00119549,80957.0,80956.0,0.061684]
[1731262151788,0.03909231,80957.0,80956.0,0.18549957]
[1731262151988,0.03909231,80957.0,80956.0,0.061684]
[1731262152778,0.00704796,80957.0,80956.0,0.061684]
[1731262152983,0.061677,80966.0,80956.0,0.061684]
[1731262153183,0.04428138,80967.0,80960.0,0.061681]
[1731262153478,0.3608,80968.0,80960.0,0.057301]
[1731262153884,0.3608,80968.0,80954.0,0.08639542]
[1731262154591,0.00276492,80989.0,80967.0,0.3608]
[1731262154793,0.00276492,80989.0,80982.0,0.09383617]
[1731262154987,0.00107124,80986.0,80982.0,0.09383617]
[1731262155192,0.3608,80983.0,80968.0,0.35857617]
[1731262155387,0.00107124,80986.0,80978.0,0.09383617]
[1731262155592,0.00107124,80986.0,80985.0,0.45463617]
[1731262155887,0.00107124,80986.0,80970.0,0.18600757]
[1731262155888,0.00107124,80986.0,80979.0,0.18600757]
[1731262156085,0.36304001,80983.0,80971.0,0.09383617]
[1731262156290,0.03022516,80982.0,80971.0,0.27829314]
[1731262156493,0.03022516,80982.0,80980.0,0.33995914]
[1731262156688,0.03022516,80982.0,80980.0,0.15550217]
[1731262156891,0.03022516,80982.0,80981.0,0.37044]
[1731262157093,0.03246517,80982.0,80981.0,0.55538137]
[1731262157683,0.03299203,80982.0,80981.0,0.55538137]
[1731262158081,0.00276687,80982.0,80981.0,0.55538137]
[1731262158287,0.00278023,80992.0,80983.0,0.061663]
[1731262158491,0.03022336,80991.0,80986.0,0.09383617]
[1731262158694,0.00278023,80992.0,80986.0,0.09383617]
[1731262158695,0.03022314,80990.0,80986.0,0.09383617]
[1731262158995,0.03022314,80989.0,80987.0,0.18434993]
[1731262159190,0.03022314,80989.0,80978.0,0.1408]
[1731262159191,0.3608,80988.0,80968.0,0.00164]
[1731262159388,0.3608,80969.0,80960.0,0.02470343]
[1731262159593,0.03022405,80968.0,80962.0,0.09383617]
[1731262160195,0.061678,80965.0,80962.0,0.09383617]
[1731262160394,0.061676,80968.0,80962.0,0.09383617]
[1731262160895,0.03023467,80967.0,80962.0,0.09383617]
[1731262161192,0.03023467,80966.0,80962.0,0.09383617]
[1731262161493,0.06813106,80965.0,80962.0,0.09383617]
[1731262161795,0.06813106,80964.0,80959.0,0.3608]
[1731262161995,0.42893106,80963.0,80955.0,0.15340226]
[1731262162195,0.06813106,80962.0,80956.0,0.18620385]
[1731262162502,0.06813106,80961.0,80955.0,0.51420226]
[1731262162687,0.3608,80956.0,80955.0,0.05956609]
[1731262162890,0.42893106,80956.0,80955.0,0.05956609]
[1731262163192,0.42893106,80956.0,80955.0,0.0001244]
[1731262163389,0.3608,80956.0,80955.0,0.0001244]
[1731262163596,0.42893595,80956.0,80955.0,0.0001244]
[1731262164291,0.47441812,80956.0,80955.0,0.0001244]
[1731262165198,0.47442739,80956.0,80955.0,0.0001244]
[1731262165590,0.47442739,80956.0,80940.0,0.3608]
[1731262165591,0.061702,80933.0,80929.0,0.3608]
[1731262165891,0.06814522,80932.0,80929.0,0.54535678]
[1731262166093,0.06814522,80931.0,80929.0,0.54535678]
[1731262166294,0.061701,80935.0,80930.0,0.09264177]
[1731262166492,0.06815274,80934.0,80930.0,0.09264177]
[1731262166696,0.06824901,80933.0,80930.0,0.09264177]
[1731262166904,0.06815274,80932.0,80931.0,9.944e-05]
[1731262168195,9.627e-05,80933.0,80931.0,9.944e-05]
[1731262169001,0.06179827,80933.0,80931.0,9.944e-05]
[1731262169399,0.3608,80932.0,80931.0,9.944e-05]
[1731262172797,1.10441617,80932.0,80931.0,4.4e-07]
[1731262173103,1.30283617,80932.0,80900.0,0.09383617]
[1731262173300,0.3608,80912.0,80900.0,0.15298559]
[1731262173499,0.061726,80902.0,80900.0,0.15298559]
[1731262173698,0.3608,80912.0,80898.0,0.00185418]
[1731262173699,0.061728,80899.0,80898.0,0.00185418]
[1731262174396,0.061737,80887.0,80886.0,9.977e-05]
[1731262174703,0.51637317,80887.0,80886.0,9.977e-05]
[1731262174902,1.30262573,80887.0,80861.0,0.3608]
[1731262175090,0.3608,80867.0,80854.0,0.3608]
[1731262175293,0.3608,80874.0,80859.0,0.14100639]
[1731262175494,0.03027262,80873.0,80863.0,0.3608]
[1731262175704,0.03027262,80872.0,80868.0,0.14100639]
[1731262175899,0.00185565,80884.0,80869.0,9.734e-05]
[1731262176091,0.3608,80875.0,80869.0,9.734e-05]
[1731262176691,0.06820706,80874.0,80869.0,9.734e-05]
[1731262176896,0.06820706,80873.0,80869.0,9.734e-05]
[1731262177096,0.06820706,80872.0,80869.0,9.734e-05]
[1731262177295,0.0682072,80871.0,80869.0,9.734e-05]
[1731262177510,0.03026808,80870.0,80869.0,9.734e-05]
[1731262178002,0.37096,80870.0,80869.0,5.734e-05]
[1731262178198,0.43917316,80870.0,80869.0,5.734e-05]
[1731262178399,0.40122808,80870.0,80869.0,5.734e-05]
[1731262178702,0.46297808,80870.0,80869.0,5.734e-05]
[1731262179004,0.061761,80856.0,80853.0,0.00175513]
[1731262179202,0.061762,80854.0,80853.0,0.00175513]
[1731262179403,0.3608,80857.0,80853.0,0.00175513]
[1731262179904,0.00012726,80856.0,80853.0,0.00175513]
[1731262181002,0.00012726,80856.0,80847.0,0.06009827]
[1731262181199,0.00012726,80856.0,80846.0,0.061768]
[1731262181704,0.00012726,80856.0,80848.0,0.3608]
[1731262182202,0.00012726,80856.0,80851.0,0.061764]
[1731262182509,0.00012726,80856.0,80852.0,1.06]
[1731262182711,0.00012726,80856.0,80848.0,0.3608]
[1731262183304,0.00012726,80856.0,80845.0,1.06]
[1731262183505,0.00012726,80856.0,80847.0,0.3608]
[1731262183706,0.00012726,80856.0,80842.0,9.277e-05]
[1731262184201,0.00012726,80856.0,80842.0,0.05919362]
[1731262184408,0.00012726,80856.0,80842.0,9.277e-05]
[1731262185403,0.3608,80843.0,80842.0,9.277e-05]
[1731262186209,0.73188,80843.0,80842.0,9.277e-05]
[1731262186710,0.3608,80843.0,80842.0,9.277e-05]
[1731262187322,0.73188,80843.0,80842.0,9.277e-05]
[1731262187622,0.3608,80843.0,80842.0,9.277e-05]
[1731262188218,0.3608,80861.0,80842.0,0.36089277]
[1731262188415,0.061755,80864.0,80844.0,0.061769]
[1731262188612,0.061755,80864.0,80842.0,0.36089277]
[1731262188818,0.3608,80867.0,80842.0,9.277e-05]
[1731262188819,0.3608,80853.0,80842.0,9.277e-05]
[1731262189017,0.3608,80853.0,80843.0,0.06177]
[1731262189323,0.3608,80859.0,80843.0,0.06177]
[1731262189919,0.3608,80859.0,80844.0,0.061769]
[1731262190118,0.50284,80859.0,80844.0,0.061769]
[1731262190623,0.3608,80870.0,80855.0,0.14100639]
[1731262190824,0.3608,80877.0,80855.0,0.14100639]
[1731262191027,0.3608,80890.0,80855.0,0.14100639]
[1731262191028,0.00179,80897.0,80875.0,0.061746]
[1731262191219,0.00179,80897.0,80869.0,0.50180639]
[1731262191220,0.50180639,80896.0,80876.0,0.2679]
[1731262191527,0.3608,80887.0,80864.0,0.061754]
[1731262191722,0.3608,80887.0,80867.0,0.061752]
[1731262191723,0.00015603,80886.0,80867.0,0.061752]
[1731262192024,0.00015603,80886.0,80876.0,0.061745]
[1731262192228,0.00015603,80886.0,80870.0,0.3608]
[1731262192229,0.00015603,80886.0,80882.0,0.14100639]
[1731262192724,0.00015603,80886.0,80885.0,0.3608]
[1731262192930,9e-07,80897.0,80896.0,0.28201278]
[1731262193119,0.00185531,80914.0,80913.0,0.061717]
[1731262193324,0.00185531,80914.0,80913.0,0.56352339]
[1731262193627,1.0402,80932.0,80913.0,0.3608]
[1731262193926,0.061709,80924.0,80912.0,0.00013434]
[1731262194226,0.422509,80924.0,80912.0,0.00013434]
[1731262194421,0.061715,80916.0,80912.0,0.00013434]
[1731262194616,0.061717,80913.0,80912.0,0.00013434]
[1731262195120,0.061717,80913.0,80912.0,8.611e-05]
[1731262195121,0.432477,80913.0,80912.0,8.611e-05]
[1731262195319,0.3608,80917.0,80912.0,3.798e-05]
[1731262195520,0.03025727,80916.0,80912.0,3.798e-05]
[1731262195721,0.422516,80914.0,80912.0,3.798e-05]
[1731262196327,0.37076,80913.0,80912.0,3.798e-05]
[1731262196631,0.422516,80914.0,80912.0,3.798e-05]
[1731262197127,0.061708,80926.0,80912.0,3.798e-05]
[1731262197321,0.3608,80927.0,80912.0,3.798e-05]
[1731262197525,0.061712,80920.0,80912.0,3.798e-05]
[1731262197724,0.061717,80913.0,80912.0,3.798e-05]
[1731262198027,0.45277213,80913.0,80912.0,3.798e-05]
[1731262198233,0.82353213,80913.0,80912.0,3.798e-05]
[1731262198427,1.26557213,80913.0,80912.0,3.798e-05]
[1731262198628,1.26557213,80913.0,80895.0,0.00185427]
[1731262198629,0.061724,80905.0,80895.0,0.00185427]
[1731262198831,0.06818026,80904.0,80886.0,0.30568749]
[1731262199126,0.06818026,80904.0,80883.0,0.32964]
[1731262199127,0.1124968,80904.0,80883.0,0.32964]
[1731262199328,0.061726,80902.0,80883.0,0.32964]
[1731262199535,0.06818026,80901.0,80883.0,0.26802433]
[1731262199732,0.061729,80898.0,80883.0,0.26802433]
[1731262199935,0.06818026,80897.0,80883.0,0.26802433]
[1731262200120,0.06818026,80897.0,80889.0,0.14100639]
[1731262200432,0.06818026,80896.0,80892.0,0.061732]
[1731262200622,0.06818026,80895.0,80893.0,0.061732]
[1731262200822,0.41150297,80931.0,80902.0,0.061725]
[1731262201131,0.0431661,80917.0,80916.0,0.20272139]
[1731262201726,0.00011513,80930.0,80916.0,0.69800568]
[1731262202045,0.00011513,80930.0,80929.0,0.061705]
[1731262202530,0.00011513,80930.0,80920.0,0.3608]
[1731262202735,0.00011513,80930.0,80928.0,0.061705]
[1731262204529,0.00011513,80930.0,80920.0,0.3608]
[1731262204827,0.00011513,80930.0,80906.0,0.3608]
[1731262204828,0.3608,80928.0,80916.0,0.061714]
[1731262205038,0.3608,80928.0,80914.0,0.3608]
[1731262205039,0.04430197,80927.0,80917.0,0.061714]
[1731262205225,0.04430197,80927.0,80907.0,0.47288616]
[1731262205226,0.061708,80925.0,80907.0,0.47288616]
[1731262205425,0.04430197,80927.0,80907.0,0.2886]
[1731262205626,0.3608,80919.0,80897.0,0.00164]
[1731262205830,0.061721,80908.0,80896.0,0.36338]
[1731262206028,0.061725,80903.0,80896.0,0.36338]
[1731262206632,0.03792442,80902.0,80896.0,0.36338]
[1731262206936,0.3608,80904.0,80890.0,0.42960639]
[1731262207135,0.3608,80904.0,80896.0,0.06173]
[1731262207431,0.3608,80904.0,80890.0,0.43132639]
[1731262207734,0.3608,80904.0,80890.0,0.29032]
[1731262207938,0.06173,80897.0,80888.0,0.00357444]
[1731262208242,0.061731,80895.0,80888.0,0.00185444]
[1731262208732,0.3608,80896.0,80888.0,0.00185444]
[1731262208733,0.3608,80889.0,80888.0,0.00185444]
[1731262209331,0.73168,80889.0,80870.0,0.06256888]
[1731262209532,0.061739,80885.0,80866.0,0.2684]
[1731262209737,0.422539,80885.0,80866.0,0.2684]
[1731262209935,0.3608,80889.0,80884.0,0.18611218]
[1731262210338,0.3608,80889.0,80876.0,0.3608]
[1731262210339,0.3608,80889.0,80879.0,0.061743]
[1731262210638,0.3608,80889.0,80876.0,0.3608]
[1731262210836,0.3608,80889.0,80870.0,0.02471857]
[1731262210837,0.422536,80889.0,80873.0,0.061747]
[1731262211035,0.061738,80886.0,80870.0,0.02471857]
[1731262211338,0.3608,80889.0,80863.0,0.06332895]
[1731262211339,0.061739,80885.0,80863.0,0.06332895]
[1731262211639,0.06175,80870.0,80854.0,0.2702]
[1731262211937,0.54955546,80888.0,80859.0,0.3608]
[1731262212236,0.3608,80885.0,80868.0,0.061751]
[1731262212538,0.061741,80882.0,80868.0,0.061751]
[1731262213631,0.061744,80879.0,80865.0,0.06054649]
[1731262213827,0.3608,80878.0,80864.0,0.00011453]
[1731262214032,0.3608,80870.0,80864.0,0.00011453]
[1731262214229,0.061751,80869.0,80864.0,0.00011453]
[1731262214641,0.061752,80867.0,80864.0,0.00011453]
[1731262215339,0.061753,80866.0,80864.0,0.00011453]
[1731262216036,0.432753,80866.0,80864.0,0.00011453]
[1731262216341,0.3608,80869.0,80864.0,0.00011453]
[1731262216642,0.03027186,80868.0,80864.0,0.00011453]
[1731262216939,0.3608,80869.0,80864.0,0.00011453]
[1731262216940,0.03027168,80867.0,80864.0,0.00011453]
[1731262217130,0.3608,80869.0,80864.0,0.00011453]
[1731262217336,0.0302684,80868.0,80865.0,0.061753]
[1731262217531,0.3608,80882.0,80876.0,0.061745]
[1731262217734,0.00185546,80888.0,80881.0,0.3608]
[1731262217942,9.847e-05,80894.0,80893.0,0.061732]
[1731262218237,0.3608,80921.0,80893.0,0.54533738]
[1731262218444,0.06817272,80919.0,80908.0,0.14100639]
[1731262218638,0.06817272,80918.0,80902.0,0.422525]
[1731262218834,0.3608,80921.0,80902.0,0.3608]
[1731262218835,0.06817272,80917.0,80902.0,0.3608]
[1731262219135,0.3608,80921.0,80904.0,0.061724]
[1731262219136,9.047e-05,80906.0,80904.0,0.061724]
[1731262219345,0.03025284,80905.0,80904.0,0.061724]
[1731262219641,9.047e-05,80906.0,80904.0,0.061724]
[1731262219937,0.0302505,80905.0,80904.0,0.061724]
[1731262220344,0.0302505,80905.0,80904.0,0.3608]
[1731262220345,0.03025074,80905.0,80904.0,0.3608]
[1731262220737,9.047e-05,80906.0,80904.0,0.3608]
[1731262220934,0.06816911,80905.0,80902.0,0.0012139]
[1731262221936,0.06816911,80905.0,80887.0,0.02473922]
[1731262221937,0.061725,80903.0,80887.0,0.02473922]
[1731262222135,0.06816911,80902.0,80887.0,0.02473922]